[Event "5th Vera Menchik Memorial 2022"]
[Site "Prag"]
[Date "2022.06.05"]
[Round "3.4"]
[White "Vrana, Frantisek"]
[Black "Sahidi, Samir"]
[Result "0-1"]
[ECO "B15"]
[WhiteElo "2213"]
[BlackElo "2459"]
[Annotator "TA"]
[PlyCount "72"]
[EventDate "2022.06.05"]
[EventType "tourn"]
[EventCountry "CZE"]
[SourceTitle "playchess.com"]
[Source "ChessBase"]
[SourceQuality "1"]
[TimeControl "720+3"]

{[%evp 13,72,54,55,-9,0,0,0,0,0,0,0,0,0,0,23,-23,22,-55,-52,-49,0,-15,-12,-8,-14,-15,-10,-33,-13,-14,-24,-146,-164,-171,-73,-141,-172,-146,-146,-255,-238,-254,-243,-250,-253,-378,-255,-335,-168,-228,-260,-260,-260,-636,-623,-815,-815,-736,-745,-658,-648]} 1. e4 {[%emt 0:00:03]} c6 {[%emt 0:00:05]} 2. d4 {[%emt 0:00:06]} d5 {[%emt 0:00:01]} 3. Nc3 {[%emt 0:00:01]} g6 {[%emt 0:00:28]} 4. Nf3 {[%emt 0:00:22]} Bg7 {[%emt 0:00:02]} 5. h3 {[%emt 0:00:04]} dxe4 {[%emt 0:01:05]} 6. Nxe4 {[%emt 0:00:02]} Nd7 {[%emt 0:00:01] 6...Nf6 is more advanced technology.} 7. Bc4 {[%emt 0:00:29]} Ngf6 {[%emt 0:00:25]} 8. Ned2 {[%emt 0:01:43] B15: Caro-Kann: 3 Nc3: 3...g6 and 3...dxe4 4 Nxe4 Nf6 5 Nxf6+ exf6.} (8. Nxf6+ $14 Nxf6 9. O-O) 8... O-O $11 {[%emt 0:00:14]} 9. O-O {[%emt 0:00:02] [#]} b5 $146 {[%emt 0:00:26]} ({Predecessor:} 9... c5 10. c3 cxd4 11. cxd4 Nb6 12. Bb3 a5 13. Nb1 a4 14. Bc2 Bd7 15. Nc3 Qc7 {½-½ (66) Paulet,I (2286)-Peng,Z (2352) Amsterdam 2018}) 10. Bd3 {[%emt 0:00:16] The position is equal.} Bb7 {[%emt 0:00:17]} 11. Nb3 {[%emt 0:00:08]} a5 {[%emt 0:00:21]} 12. a4 {[%emt 0:00:03]} b4 {[%emt 0:00:04]} 13. Re1 {[%emt 0:00:19]} Re8 {[%emt 0:00:21]} 14. Qe2 {[%emt 0:00:42]} (14. Ne5 $142) 14... Qc7 {[%emt 0:00:17]} (14... e5 $5 {[%cal Re5e4]} 15. dxe5 (15. Nxe5 Nd5 $15) 15... Nd5 $11) 15. Be3 {[%emt 0:00:45]} ({White should play} 15. Ne5 $11) 15... Nd5 $1 $15 {[%emt 0:00:09][%cal Oc6c5]} 16. Bc4 {[%emt 0:01:20]} e5 {[%emt 0:01:19]} (16... c5 $15) 17. dxe5 {[%emt 0:01:08]} Nxe5 {[%emt 0:00:47]} 18. Bxd5 {[%emt 0:00:12]} cxd5 {[%emt 0:00:28]} 19. Bd4 $1 {[%emt 0:00:48][%cal Rd4e5]} Ba6 {[%emt 0:01:13]} 20. Qd1 {[%emt 0:01:17]} (20. Qd2 {is interesting.} Nxf3+ 21. gxf3 Rad8 22. Bxg7 Kxg7 23. h4) 20... Nxf3+ {[%emt 0:00:17]} 21. Qxf3 {[%emt 0:00:02]} Qxc2 {[%emt 0:00:17] [#] And now ...Be2 would win.} 22. Bxg7 {[%emt 0:00:07]} (22. Rxe8+ $11 Rxe8 23. Rc1) 22... Kxg7 $17 {[%emt 0:00:25]} 23. Nxa5 {[%emt 0:00:12]} d4 {[%emt 0:01:26]} (23... Qxb2 $19 {Hoping for ...Rxe1+.} 24. Qxd5 Rac8) 24. Rec1 {[%emt 0:00:30]} (24. Qf4 $142 d3 25. Qd4+ Kg8 26. Rec1) 24... Qxb2 {[%emt 0:00:39] ...Rac8 is the strong threat. 0x0.002047ec1962dp-1022s more active pieces.} 25. Rab1 {[%emt 0:00:01]} Qe2 {[%emt 0:00:36] [#] White must now prevent ...Qxf3.} 26. Rxb4 {[%emt 0:00:24]} (26. Nc6 $17) 26... Qxf3 {[%emt 0:00:46]} 27. gxf3 {[%emt 0:00:01]} Be2 {[%emt 0:00:12]} 28. Nb3 {[%emt 0:00:12]} d3 {[%emt 0:00:02] Strongly threatening ...Red8.} ({Stronger than} 28... Bxf3 29. Nxd4 Re4 30. Rcb1 $11) 29. Nd2 {[%emt 0:00:03]} (29. Rb1 $142) 29... Reb8 {[%emt 0:00:09]} 30. Rcb1 {[%emt 0:00:10]} Rc8 {[%emt 0:00:07]} (30... Rxb4 $142 31. Rxb4 Rc8) 31. Kg2 {[%emt 0:00:22]} (31. Rd4 $142) 31... Rc2 $19 {[%emt 0:00:03]} 32. R1b2 {[%emt 0:00:22]} Rxa4 {[%emt 0:00:10]} 33. Rb7 {[%emt 0:00:12]} (33. Rxa4 Rxb2 34. Nc4) 33... Ra2 {[%emt 0:00:06] Black is clearly winning.} 34. Rxa2 {[%emt 0:00:18]} Rxa2 {[%emt 0:00:02]} 35. Ne4 {[%emt 0:00:03]} d2 {[%emt 0:00:03]} 36. Nxd2 {[%emt 0:00:11]} Rxd2 {[%emt 0:00:02] Weighted Error Value: White=0.51/Black=0.20 (precise)} 0-1

[Event "5th Vera Menchik Memorial 2022"]
[Site "Prag"]
[Date "2022.06.05"]
[Round "3.5"]
[White "Haman, Jakub"]
[Black "Neuman, Petr"]
[Result "0-1"]
[ECO "B07"]
[WhiteElo "2229"]
[BlackElo "2389"]
[Annotator "TA"]
[PlyCount "108"]
[EventDate "2022.06.05"]
[EventType "tourn"]
[EventCountry "CZE"]
[SourceTitle "playchess.com"]
[Source "ChessBase"]
[SourceQuality "1"]
[TimeControl "720+3"]

{[%evp 10,108,38,33,45,28,37,39,26,26,31,16,10,-5,0,-22,-22,-20,-22,-21,-21,-23,-21,-21,-21,-21,-20,-21,-22,-31,-26,-27,-19,-21,-15,-23,-8,-12,-7,-10,0,0,0,-20,0,0,0,-8,0,0,0,0,0,0,0,-47,-50,-61,-26,-26,-26,-166,-167,-172,-169,-195,-188,-287,-289,-274,-264,-386,-349,-453,-457,-914,-322,-718,-733,-557,-706,-526,-474,-2937,-2860,-6166,-5485,-29940,-5585,-2539,-5514,-2229,-2196,-6398,-6318,-29982,-29983,-29982,-29983,-29979,-29976]} 1. e4 {[%emt 0:00:02]} d6 {[%emt 0:00:03]} 2. d4 {[%emt 0:00:02]} Nf6 {[%emt 0:00:01]} 3. Nc3 {[%emt 0:00:02]} e5 {[%emt 0:00:02]} 4. dxe5 {[%emt 0:00:02]} dxe5 {[%emt 0:00:01]} 5. Qxd8+ {[%emt 0:00:05]} Kxd8 {[%emt 0:00:01]} 6. Bc4 {[%emt 0:00:18]} Ke8 {[%emt 0:00:03] B07: Pirc Defence: Miscellaneous Systems.} 7. f3 {[%emt 0:00:29]} c6 {[%emt 0:00:03]} 8. a4 {[%emt 0:00:02]} a5 {[%emt 0:00:05] White is slightly better.} 9. Be3 {[%emt 0:00:05]} Nbd7 {[%emt 0:00:02] 9...Nbd7 has become a bit dusty these days.} 10. O-O-O {[%emt 0:00:12]} Bc5 {[%emt 0:00:03]} 11. Bxc5 {[%emt 0:00:07]} Nxc5 {[%emt 0:00:02]} 12. Nge2 {[%emt 0:00:07]} Nfd7 {[%emt 0:00:04]} 13. b3 {[%emt 0:00:49]} Nb6 {[%emt 0:00:04]} 14. Bd3 {[%emt 0:00:03]} Be6 {[%emt 0:00:11]} 15. Kb2 {[%emt 0:00:07]} Rd8 {[%emt 0:00:10][%cal Oe6b3]} 16. Nc1 {[%emt 0:00:05]} Ke7 {[%emt 0:00:08]} 17. Be2 {[%emt 0:00:03] [#]} g6 $146 {[%emt 0:00:08]} ({Predecessor:} 17... Rxd1 18. Rxd1 g5 19. Nd3 Nbd7 20. Nxc5 Nxc5 21. Rf1 h5 22. Nd1 h4 23. Ne3 b6 {½-½ (36) Nestorovic,L (2419)-Pikula,D (2531) Valjevo 2011}) 18. Rxd8 {[%emt 0:00:09]} Rxd8 {[%emt 0:00:02]} 19. Rd1 {[%emt 0:00:04]} Rg8 {[%emt 0:00:49]} 20. Nd3 {[%emt 0:00:02]} Nbd7 {[%emt 0:00:11]} 21. Nb1 {[%emt 0:00:26]} Nxd3+ {[%emt 0:00:29]} 22. Bxd3 {[%emt 0:00:04]} Nc5 {[%emt 0:00:06]} 23. Na3 {[%emt 0:00:13]} Rd8 {[%emt 0:00:15][%cal Oe6b3]} 24. Be2 {[%emt 0:00:07]} Rb8 {[%emt 0:01:43]} 25. Kc3 {[%emt 0:01:50]} f6 {[%emt 0:00:12]} 26. g3 {[%emt 0:00:14]} Bd7 {[%emt 0:00:39]} 27. Nc4 {[%emt 0:00:08]} b6 {[%emt 0:00:02]} 28. Bd3 {[%emt 0:00:45]} Ne6 {[%emt 0:00:04]} 29. Rf1 {[%emt 0:00:50]} Nc5 {[%emt 0:00:53]} 30. f4 {[%emt 0:00:24]} exf4 {[%emt 0:00:09]} 31. gxf4 {[%emt 0:00:05]} Be6 {[%emt 0:00:34]} 32. f5 {[%emt 0:00:30]} (32. Kd4 $11 {is more appropriate.}) 32... Bxc4 $15 {[%emt 0:00:14]} 33. Kxc4 {[%emt 0:00:16][%mdl 4096] Endgame KRB-KRN} Nd7 {[%emt 0:00:01]} 34. fxg6 {[%emt 0:00:12]} hxg6 {[%emt 0:00:01]} 35. Kc3 {[%emt 0:00:11] This move loses the game for White.} (35. h4 $1 $11 {and White is okay.}) 35... Rh8 $19 {[%emt 0:00:05]} 36. Rf2 {[%emt 0:00:01]} Ne5 {[%emt 0:00:03]} 37. Be2 {[%emt 0:01:06]} Rh4 {[%emt 0:00:10]} 38. Kd4 {[%emt 0:00:20] [#]} (38. Rg2 $142) 38... f5 $1 {[%emt 0:01:33][%cal Bf6f5,Bf5f4][%mdl 32]} 39. Bd3 {[%emt 0:00:27]} Ke6 {[%emt 0:00:37]} 40. Rg2 {[%emt 0:00:27]} (40. h3 {was necessary.}) 40... c5+ {[%emt 0:01:06]} 41. Ke3 {[%emt 0:00:04]} f4+ {[%emt 0:00:01]} 42. Kd2 {[%emt 0:00:23] [#]} (42. Kf2 $142 f3 43. Rg1) 42... Kf6 $2 {[%emt 0:00:16]} (42... Rxh2 $3 {[%mdl 512]} 43. Rxh2 (43. Bf1 Rh8) 43... Nf3+ 44. Ke2 Nxh2) 43. Rf2 {[%emt 0:00:21] [#]} (43. Be2) 43... Rxh2 $3 {[%emt 0:00:26][%mdl 512]} 44. Rxh2 {[%emt 0:00:08]} Nf3+ {[%emt 0:00:01]} 45. Ke2 {[%emt 0:00:01]} Nxh2 {[%emt 0:00:01] KB-KN} 46. Kf2 {[%emt 0:00:08]} (46. e5+ $142 Kxe5 47. Bxg6) 46... g5 {[%emt 0:00:08] White must now prevent ...Ke5.} 47. Be2 {[%emt 0:00:14]} g4 {[%emt 0:00:03] ...Ke5 is the strong threat.} 48. Kg1 {[%emt 0:00:04]} g3 {[%emt 0:00:02]} (48... f3 $142 49. Bc4 g3 50. Kh1 Ng4 51. Bf1 Ne3 52. e5+ Kxe5 53. Bh3 Kf4 54. c4 f2 55. Bg2 Kg4 56. b4 cxb4 57. c5 b3 58. Bf1 Nxf1 59. c6 Ne3 60. c7 f1=Q#) 49. Kg2 {[%emt 0:00:04]} Ke5 {[%emt 0:00:02]} 50. Bd3 {[%emt 0:00:25]} Kd4 {[%emt 0:00:10]} 51. Kh3 {[%emt 0:00:07]} Nf3 {[%emt 0:00:04] ( -> ...Ne1)} 52. Bf1 {[%emt 0:00:52]} Kxe4 {[%emt 0:00:25] Black mates.} 53. Bg2 {[%emt 0:00:05]} Ke3 {[%emt 0:00:01]} 54. Kg4 {[%emt 0:00:01]} Ne1 {[%emt 0:00:04][%csl LRc2,LRg2] Weighted Error Value: White=0.92/Black=0.27 (precise)} 0-1

[Event "5th Vera Menchik Memorial 2022"]
[Site "Prag"]
[Date "2022.06.05"]
[Round "3.6"]
[White "Brejnik, Gustav"]
[Black "Mladek, Richard"]
[Result "1/2-1/2"]
[ECO "E04"]
[WhiteElo "2246"]
[BlackElo "2361"]
[Annotator "TA"]
[PlyCount "206"]
[EventDate "2022.06.05"]
[EventType "tourn"]
[EventCountry "CZE"]
[SourceTitle "playchess.com"]
[Source "ChessBase"]
[SourceQuality "1"]
[TimeControl "720+3"]

{[%evp 20,206,18,16,20,21,21,22,29,26,52,17,17,22,31,31,41,39,35,15,20,8,17,0,40,31,47,0,0,0,41,11,11,11,43,45,49,31,39,15,34,26,58,17,17,17,17,15,16,14,20,0,0,0,0,0,0,0,0,0,0,0,0,0,0,0,0,0,0,0,0,0,0,0,0,0,0,-8,-8,-8,-8,-8,-8,-29,-34,-636,-64,-60,-56,-212,-175,-208,-198,-206,-204,-485,-199,-386,-8,-12,-12,-28,-28,-28,-28,-28,-8,-30,-8,-8,-8,-8,-18,-18,-18,-18,-18,-18,-18,-47,-47,-47,-47,-47,-47,-47,-47,-47,-47,-47,-47,-47,-47,-47,-47,-47,0,-47,-47,-47,-47,-47,-47,-55,-54,-54,-47,-55,-47,-55,-47,-47,-47,-47,-47,-47,-47,-47,-47,-47,-47,-47,-47,-47,-47,-47,-47,-47,-47,-47,-47,-47,-47,-47,-47,-47,-47,-55,-55,-55,-55,-62,-47,-55,-55,-69,-8,-8,-8]} 1. d4 {[%emt 0:00:02]} d5 {[%emt 0:00:01]} 2. c4 {[%emt 0:00:01]} e6 {[%emt 0:00:01]} 3. Nf3 {[%emt 0:00:02]} Nf6 {[%emt 0:00:03]} 4. g3 {[%emt 0:00:02]} dxc4 {[%emt 0:00:02]} 5. Bg2 {[%emt 0:00:01]} c5 {[%emt 0:00:01]} 6. O-O {[%emt 0:00:09]} Nc6 {[%emt 0:00:02]} 7. dxc5 {[%emt 0:00:02]} Qxd1 {[%emt 0:00:01]} 8. Rxd1 {[%emt 0:00:01]} Bxc5 {[%emt 0:00:02]} 9. Nbd2 {[%emt 0:00:01]} c3 {[%emt 0:00:01]} 10. bxc3 {[%emt 0:00:01]} O-O {[%emt 0:00:02]} 11. Nb3 {[%emt 0:00:04]} Be7 {[%emt 0:00:01] E04: Open Catalan: 5 Nf3.} 12. Nfd4 {[%emt 0:01:28]} Nxd4 {[%emt 0:01:15]} 13. cxd4 {[%emt 0:00:22]} Nd5 {[%emt 0:00:20]} 14. Bd2 {[%emt 0:00:22] [#]} Ba3 $146 {[%emt 0:01:14]} ({Predecessor:} 14... f5 15. Rac1 b6 16. Bf4 Bb7 17. Nd2 Rac8 18. Nc4 Rfd8 19. Be5 Ba6 20. Bxd5 exd5 {1-0 (77) Svane,R (2648)-Tari,A (2650) Chess.com INT 2022}) 15. Rab1 {[%emt 0:01:52]} b6 $1 {[%emt 0:00:10]} 16. e4 {[%emt 0:01:19]} Nf6 {[%emt 0:00:52]} 17. Bc1 {[%emt 0:00:33]} Bb4 {[%emt 0:01:47]} 18. a3 {[%emt 0:00:21]} Be7 {[%emt 0:00:12]} 19. a4 {[%emt 0:00:10]} (19. Bg5 $5 {[%cal Re4e5]} Re8 20. e5 $14) 19... Bb7 {[%emt 0:00:10]} 20. f3 {[%emt 0:00:15]} Rfc8 {[%emt 0:00:43]} 21. Bf1 {[%emt 0:00:15]} Bb4 {[%emt 0:00:23]} (21... Rc3 $5 {[%cal Rc3f3]}) 22. Bd2 {[%emt 0:00:34]} Bxd2 {[%emt 0:00:18]} 23. Rxd2 {[%emt 0:00:20]} (23. Nxd2 $14 Bc6 24. Rb4) 23... Rc3 $11 {[%emt 0:00:04]} 24. Rd3 {[%emt 0:01:00]} Rac8 {[%emt 0:00:06]} 25. Nc5 {[%emt 0:00:28]} Rxd3 {[%emt 0:00:18]} 26. Nxd3 {[%emt 0:00:01]} g5 {[%emt 0:00:51]} 27. a5 {[%emt 0:00:20]} Nd7 {[%emt 0:00:14]} 28. axb6 {[%emt 0:00:11]} axb6 {[%emt 0:00:09]} 29. Nf2 {[%emt 0:00:39]} Rc3 {[%emt 0:00:16]} 30. Bb5 {[%emt 0:00:24]} Nf6 {[%emt 0:00:47]} 31. Be2 {[%emt 0:00:08]} g4 {[%emt 0:00:09]} 32. Rxb6 {[%emt 0:00:40]} gxf3 {[%emt 0:00:01]} 33. Bxf3 {[%emt 0:00:09]} Rxf3 {[%emt 0:00:20]} 34. Rxb7 {[%emt 0:00:01][%mdl 4096] Endgame KRN-KRN} Re3 {[%emt 0:00:03]} 35. Rb8+ {[%emt 0:00:38]} Kg7 {[%emt 0:00:01]} 36. e5 {[%emt 0:00:15]} Nd5 {[%emt 0:00:05]} 37. Kg2 {[%emt 0:00:06]} Ra3 {[%emt 0:00:19]} 38. Rb7 {[%emt 0:00:14]} Ne3+ {[%emt 0:00:08]} 39. Kh3 {[%emt 0:00:00]} Ra2 {[%emt 0:00:49]} 40. Ne4 {[%emt 0:00:06]} h5 {[%emt 0:00:11]} 41. Nd6 {[%emt 0:00:06]} Ng4 {[%emt 0:00:04][%csl Gg4][%cal Ra2h2]} 42. Kh4 {[%emt 0:00:10]} ({Don't blunder} 42. Rxf7+ $2 Kg6 43. Rf6+ Nxf6 44. exf6 Ra4 $19) 42... Kg6 {[%emt 0:00:04][%cal Ra2h2]} 43. h3 {[%emt 0:00:04]} Nh6 {[%emt 0:00:31]} (43... Ne3 $5 44. g4 hxg4 45. hxg4 Ra3 $11) 44. Rb4 {[%emt 0:00:02] Prevents Ra4.} Ra6 {[%emt 0:00:06][%cal Oa6d6]} 45. g4 $1 {[%emt 0:00:05]} hxg4 {[%emt 0:00:02]} 46. hxg4 {[%emt 0:00:00]} Ra1 {[%emt 0:00:03]} 47. Rb8 {[%emt 0:00:12]} Rg1 {[%emt 0:00:07]} 48. g5 {[%emt 0:00:04]} Rxg5 {[%emt 0:00:09]} 49. Kh3 {[%emt 0:00:03]} Rg1 {[%emt 0:00:12]} 50. Rb4 {[%emt 0:00:03]} Kg5 {[%emt 0:00:10]} 51. Ne4+ {[%emt 0:00:03]} Kf4 {[%emt 0:00:01]} 52. Nf2 {[%emt 0:00:05][%mdl 8192]} (52. Nd6 $15) 52... Rg3+ $2 {[%emt 0:00:05]} ({Black should try} 52... Kf3 $19 53. Rb2 Rg3+ 54. Kh2 Rg2+ 55. Kh3 Rxf2) 53. Kh2 $15 {[%emt 0:00:01]} Rg8 {[%emt 0:00:12] ...Kf3 is the strong threat.} 54. Nh3+ $2 {[%emt 0:00:03]} (54. d5+ $1 $15 Kf3 55. dxe6) 54... Kf3 {[%emt 0:00:04]} 55. Ng1+ {[%emt 0:00:03]} Ke4 {[%emt 0:00:03]} 56. Ne2 {[%emt 0:00:03] [#]} Ng4+ $1 {[%emt 0:00:03]} 57. Kh3 $2 {[%emt 0:00:03]} (57. Kh1 {is a better defense.}) 57... Nf2+ {[%emt 0:00:08]} (57... Kf3 $142 {[%cal Rg8h8]} 58. Ng1+ Kf2) 58. Kh4 $2 {[%emt 0:00:02] [#]} (58. Kh2) 58... Kf5 $2 {[%emt 0:00:07]} (58... Kf3 $1 $19 {( -> ...Rh8+)} 59. d5 Kxe2 60. dxe6 fxe6) 59. Ng3+ {[%emt 0:00:02]} Kf4 {[%emt 0:00:01]} 60. d5+ {[%emt 0:00:03]} Kxe5 {[%emt 0:00:03]} 61. dxe6 {[%emt 0:00:02]} fxe6 {[%emt 0:00:02]} 62. Rb5+ {[%emt 0:00:03]} Kf4 {[%emt 0:00:08]} 63. Rb4+ {[%emt 0:00:01]} ({Much weaker is} 63. Ne2+ Ke4 $17) 63... Kf3 {[%emt 0:00:02]} 64. Rb3+ {[%emt 0:00:02]} Kg2 {[%emt 0:00:01] Strongly threatening ...Rg4+.} 65. Ne2 {[%emt 0:00:05]} Rg4+ {[%emt 0:00:08]} 66. Kh5 {[%emt 0:00:01]} e5 {[%emt 0:00:00]} 67. Re3 {[%emt 0:00:05]} e4 {[%emt 0:00:04]} 68. Nc3 {[%emt 0:00:02]} Rf4 {[%emt 0:00:05]} 69. Nxe4 {[%emt 0:00:02]} Nxe4 $11 {[%emt 0:00:01] KRN-KR} 70. Kg6 {[%emt 0:00:05]} Kf2 {[%emt 0:00:02]} 71. Ra3 {[%emt 0:00:01]} Rf6+ {[%emt 0:00:01]} 72. Kg7 {[%emt 0:00:01]} Rf5 {[%emt 0:00:01]} 73. Kg6 {[%emt 0:00:02]} Rd5 {[%emt 0:00:03]} 74. Ra4 {[%emt 0:00:04]} Kf3 {[%emt 0:00:01]} 75. Rb4 {[%emt 0:00:03]} Kf4 {[%emt 0:00:00]} 76. Ra4 {[%emt 0:00:03]} Rd6+ {[%emt 0:00:01]} 77. Kf7 {[%emt 0:00:00]} Rd5 {[%emt 0:00:04]} (77... Rc6 $15) 78. Ke6 {[%emt 0:00:02]} (78. Kg6 $11) 78... Re5+ $15 {[%emt 0:00:03]} 79. Kf7 {[%emt 0:00:02]} Kf5 {[%emt 0:00:01]} 80. Ra1 {[%emt 0:00:03]} Ng5+ {[%emt 0:00:01]} 81. Kg7 {[%emt 0:00:01]} Re7+ {[%emt 0:00:00]} 82. Kf8 {[%emt 0:00:01]} Rf7+ {[%emt 0:00:04]} 83. Ke8 {[%emt 0:00:02]} Rc7 {[%emt 0:00:08]} 84. Rf1+ {[%emt 0:00:02]} Kg6 {[%emt 0:00:00]} 85. Re1 {[%emt 0:00:03]} Rh7 {[%emt 0:00:13]} 86. Re7 {[%emt 0:00:02]} Nf7 {[%emt 0:00:04]} 87. Kd7 {[%emt 0:00:07]} Kf6 {[%emt 0:00:06]} 88. Re6+ {[%emt 0:00:01]} Kf5 {[%emt 0:00:00]} 89. Re1 {[%emt 0:00:03]} Ne5+ {[%emt 0:00:01]} 90. Kd6 {[%emt 0:00:02]} Rd7+ {[%emt 0:00:01]} 91. Kc5 {[%emt 0:00:02]} Ke6 {[%emt 0:00:10]} 92. Re2 {[%emt 0:00:03]} Rd5+ {[%emt 0:00:00]} 93. Kb6 {[%emt 0:00:03]} Kd6 {[%emt 0:00:01]} 94. Rh2 {[%emt 0:00:03]} Rd1 {[%emt 0:00:04]} 95. Rh6+ {[%emt 0:00:02]} Kd5 {[%emt 0:00:00]} 96. Rh8 {[%emt 0:00:03]} Rb1+ {[%emt 0:00:02]} 97. Kc7 {[%emt 0:00:02]} Rg1 {[%emt 0:00:24]} 98. Rd8+ {[%emt 0:00:01]} Kc5 {[%emt 0:00:00]} 99. Rd2 {[%emt 0:00:08]} Rg7+ {[%emt 0:00:00]} 100. Kd8 {[%emt 0:00:06]} Nf7+ {[%emt 0:00:00]} 101. Ke7 {[%emt 0:00:02]} Nd6+ {[%emt 0:00:02]} 102. Kf6 {[%emt 0:00:05]} Ne4+ {[%emt 0:00:07]} (102... Rg8 $15) 103. Kxg7 $11 {[%emt 0:00:18]} Nxd2 {[%emt 0:00:03] Black had all chances to win.  Weighted Error Value: White=0.32/Black=0.41} 1/2-1/2

[Event "5th Vera Menchik Memorial 2022"]
[Site "Prag"]
[Date "2022.06.05"]
[Round "3.7"]
[White "Vokoun, Jan"]
[Black "Bures, Jaroslav"]
[Result "1/2-1/2"]
[ECO "A48"]
[WhiteElo "2056"]
[BlackElo "2422"]
[Annotator "TA"]
[PlyCount "56"]
[EventDate "2022.06.05"]
[EventType "tourn"]
[EventCountry "CZE"]
[SourceTitle "playchess.com"]
[Source "ChessBase"]
[SourceQuality "1"]
[TimeControl "720+3"]

{[%evp 13,56,7,8,4,6,10,5,0,20,0,0,0,10,13,25,39,25,12,75,7,0,-16,0,0,7,0,19,2,29,31,26,18,35,0,0,-37,-39,-45,-31,-27,-18,-20,111,17,18]} 1. d4 {[%emt 0:00:01]} Nf6 {[%emt 0:00:01]} 2. Nf3 {[%emt 0:00:03]} g6 {[%emt 0:00:02]} 3. Bf4 {[%emt 0:00:06]} b6 {[%emt 0:00:13]} 4. Nbd2 {[%emt 0:00:13]} Bb7 {[%emt 0:00:02]} 5. h3 {[%emt 0:00:08]} c5 {[%emt 0:00:16]} 6. e3 {[%emt 0:00:01]} Bg7 {[%emt 0:00:08]} 7. c3 {[%emt 0:00:02]} O-O {[%emt 0:00:08]} 8. Be2 {[%emt 0:00:01] A48: 1 d4 Nf6 2 Nf3 g6: Torre, London and Colle Systems.} Nc6 {[%emt 0:00:03]} 9. O-O {[%emt 0:00:05]} d5 {[%emt 0:00:01] is the legacy move (9...d6).} 10. Re1 {[%emt 0:00:37]} Nd7 {[%emt 0:00:11]} 11. Qb3 {[%emt 0:00:55]} e5 {[%emt 0:00:18]} 12. dxe5 {[%emt 0:00:08]} Ndxe5 {[%emt 0:00:06]} 13. Rad1 {[%emt 0:00:28] [#]} Na5 $146 {[%emt 0:00:41]} ({Predecessor:} 13... Qc8 14. e4 d4 15. cxd4 cxd4 16. Nxe5 Nxe5 17. Nc4 Qc5 18. Nxe5 Bxe5 19. Bxe5 Qxe5 20. Qb5 Qxb5 21. Bxb5 Rfd8 22. e5 Bd5 23. Rxd4 Bxa2 24. Rd6 Be6 {½-½ (24) Ferlan,I (2270)-Hirn,O (2190) Bayern 1995}) 14. Qc2 {[%emt 0:00:10]} Nxf3+ {[%emt 0:00:07]} 15. Bxf3 {[%emt 0:00:14][%cal Od2e4]} Qe7 {[%emt 0:00:24] Against Ne4} (15... Qd7 $11 {keeps the balance.}) 16. Qb1 {[%emt 0:00:55]} (16. Nb3 $16) 16... Rad8 $11 {[%emt 0:00:18]} 17. b4 {[%emt 0:00:40]} Nc6 {[%emt 0:09:55]} 18. bxc5 {[%emt 0:00:40]} Qxc5 {[%emt 0:00:00]} 19. Rc1 {[%emt 0:00:25]} Na5 {[%emt 0:00:00] Inhibits c4.} (19... Bxc3 $2 20. Nb3 Qc4 21. Be2 Bxe1 22. Bxc4 dxc4 23. Bh6 $18) 20. Qb4 {[%emt 0:00:59] Strongly threatening Qxc5.} Rd7 {[%emt 0:00:00]} 21. Bg4 {[%emt 0:00:38]} f5 {[%emt 0:00:00]} 22. Be2 {[%emt 0:05:40]} Rc8 {[%emt 0:00:00][%cal Rg7c3,Bf8c8,Bc8c5,Bc5b5][%mdl 32]} 23. Nf3 {[%emt 0:00:00]} Bxc3 {[%emt 0:00:00]} 24. Qxc5 {[%emt 0:00:00]} Rxc5 {[%emt 0:00:00]} 25. Red1 {[%emt 0:00:00]} Nc6 {[%emt 0:00:00]} 26. g4 {[%emt 0:00:00]} fxg4 {[%emt 0:00:00]} 27. hxg4 {[%emt 0:00:00]} b5 {[%emt 0:00:00]} (27... Bf6 $11) 28. Bxb5 {[%emt 0:00:00]} Rxb5 {[%emt 0:00:00] Weighted Error Value: White=0.20 (precise) /Black=0.25 (precise)} 1/2-1/2

[Event "5th Vera Menchik Memorial 2022"]
[Site "Prag"]
[Date "2022.06.05"]
[Round "3.8"]
[White "Varga, David"]
[Black "Svoboda, Milos"]
[Result "1-0"]
[WhiteElo "2323"]
[BlackElo "2095"]
[Annotator "TA"]
[PlyCount "33"]
[EventDate "2022.06.05"]
[EventType "tourn"]
[EventCountry "CZE"]
[SourceTitle "playchess.com"]
[Source "ChessBase"]
[SourceQuality "1"]
[TimeControl "720+3"]

{[%evp 7,7,39]} 1. e4 {[%emt 0:00:02]} e5 {[%emt 0:00:06]} 2. Nf3 {[%emt 0:00:01]} Nc6 {[%emt 0:00:04]} 3. Bb5 {[%emt 0:00:02]} f5 {[%emt 0:00:06]} 4. d3 {[%emt 0:00:36] [#] A rather calm draw.} {Predecessor:} fxe4 $146 5. dxe4 Nf6 6. O-O {C63: Ruy Lopez: Schliemann/Jaenisch Defence.} Bc5 7. Bxc6 bxc6 8. Nxe5 O-O 9. Nc3 d6 10. Na4 Nxe4 11. Nxc5 Nxc5 12. Be3 Qe8 13. Bxc5 Qxe5 14. Bd4 Qg5 15. f3 c5 16. Bc3 Bb7 17. Qd3 {½-½ (45) Caruana,F (2781)-Nakamura,H (2750) Chess.com INT 2022} 1-0